[Event "Czech Open GM 2020"]
[Site "Pardubice"]
[Date "2020.09.28"]
[Round "9.5"]
[White "Plat, Vojtech"]
[Black "Sorensen, Hampus"]
[Result "1-0"]
[ECO "D13"]
[WhiteElo "2566"]
[BlackElo "2361"]
[Annotator "ChessBase"]
[PlyCount "57"]
[EventDate "2020.09.21"]
[EventCountry "CZE"]
[SourceTitle "playchess.com"]
[Source "ChessBase"]
[SourceQuality "1"]
[TimeControl "40/5400+30:1800+30"]

1. d4 {[%emt 0:00:00]} d5 {[%emt 0:00:00]} 2. c4 {[%emt 0:00:00]} c6 {[%emt 0:00:30]} 3. Nc3 {[%emt 0:00:00]} Nf6 {[%emt 0:00:48]} 4. cxd5 {[%emt 0:00:00]} cxd5 {[%emt 0:00:17]} 5. Bf4 {[%emt 0:00:00]} Nc6 {[%emt 0:01:42]} 6. e3 {[%emt 0:00:46]} a6 {[%emt 0:01:56]} 7. Rc1 {[%emt 0:00:05]} Bf5 {[%emt 0:04:12]} 8. Nf3 {[%emt 0:01:09]} e6 {[%emt 0:07:48]} 9. Qb3 {[%emt 0:01:49]} Ra7 {[%emt 0:03:39]} 10. Ne5 {[%emt 0:03:11]} Be7 {[%emt 0:02:40]} 11. Nxc6 {[%emt 0:04:03]} bxc6 {[%emt 0:00:08]} 12. Be2 {[%emt 0:00:27]} Nd7 {[%emt 0:04:54]} 13. Na4 {[%emt 0:06:09]} Qa5+ {[%emt 0:07:24]} 14. Kf1 {[%emt 0:03:25]} O-O {[%emt 0:03:28]} 15. Rxc6 {[%emt 0:03:12]} g5 {[%emt 0:12:56]} 16. Bg3 {[%emt 0:01:06]} Bg6 {[%emt 0:00:53]} 17. f3 {[%emt 0:00:42]} Qd8 {[%emt 0:05:37]} 18. Qc3 {[%emt 0:14:34]} a5 {[%emt 0:09:27]} 19. Kf2 {[%emt 0:04:26]} Bb4 {[%emt 0:03:39]} 20. Qc1 {[%emt 0:00:06]} Re8 {[%emt 0:08:03]} 21. a3 {[%emt 0:01:55]} Bf8 {[%emt 0:00:28]} 22. Rc7 {[%emt 0:00:24]} Qa8 {[%emt 0:03:02]} 23. Bb5 {[%emt 0:00:56]} Rxc7 {[%emt 0:03:11]} 24. Qxc7 {[%emt 0:00:54]} Rc8 {[%emt 0:00:22]} 25. Qxd7 {[%emt 0:00:03]} Rc2+ {[%emt 0:00:23]} 26. Be2 {[%emt 0:00:02]} Bd3 {[%emt 0:02:07]} 27. Re1 {[%emt 0:00:40]} Qa6 {[%emt 0:00:08]} 28. Nc3 {[%emt 0:00:07]} Rxb2 {[%emt 0:00:22]} 29. Qd8 {[%emt 0:00:27]} 1-0

[Event "Czech Open GM 2020"]
[Site "Pardubice"]
[Date "2020.09.28"]
[Round "9.6"]
[White "Petr, Martin"]
[Black "Stalmach, Richard"]
[Result "1-0"]
[ECO "C00"]
[WhiteElo "2484"]
[BlackElo "2287"]
[Annotator "ChessBase"]
[PlyCount "41"]
[EventDate "2020.09.21"]
[EventCountry "CZE"]
[SourceTitle "playchess.com"]
[Source "ChessBase"]
[SourceQuality "1"]
[TimeControl "40/5400+30:1800+30"]

1. e4 {[%emt 0:02:09]} c5 {[%emt 0:00:00]} 2. Nf3 {[%emt 0:00:08]} e6 {[%emt 0:00:00]} 3. d3 {[%emt 0:00:15]} Nc6 {[%emt 0:00:43]} 4. g3 {[%emt 0:00:10]} d5 {[%emt 0:00:34]} 5. Qe2 {[%emt 0:00:07]} Nf6 {[%emt 0:01:14]} 6. Bg2 {[%emt 0:00:06]} Be7 {[%emt 0:00:19]} 7. O-O {[%emt 0:00:07]} O-O {[%emt 0:00:13]} 8. e5 {[%emt 0:00:03]} Nd7 {[%emt 0:00:07]} 9. c4 {[%emt 0:00:04]} Rb8 {[%emt 0:12:44]} 10. h4 {[%emt 0:11:48]} h6 {[%emt 0:05:40]} 11. Bf4 {[%emt 0:01:37]} d4 {[%emt 0:26:14]} 12. Na3 {[%emt 0:10:01]} b6 {[%emt 0:02:07]} 13. Rfe1 {[%emt 0:01:08]} a6 {[%emt 0:03:23]} 14. Qd2 {[%emt 0:04:55]} Bb7 {[%emt 0:00:00]} 15. Bxh6 {[%emt 0:07:10]} gxh6 {[%emt 0:01:56]} 16. Qxh6 Nb4 {[%emt 0:00:13]} 17. Ng5 Bxg5 18. hxg5 Nxd3 {[%emt 0:06:26]} 19. Re4 {[%emt 0:19:28]} Qe7 {[%emt 0:30:38]} 20. Rh4 {[%emt 0:00:00]} f5 {[%emt 0:00:06]} 21. gxf6 {[%emt 0:00:00]} 1-0

[Event "Czech Open GM 2020"]
[Site "Pardubice"]
[Date "2020.09.28"]
[Round "9.8"]
[White "Zwardon, Vojtech"]
[Black "Storme, Isak"]
[Result "1/2-1/2"]
[ECO "E61"]
[WhiteElo "2455"]
[BlackElo "2353"]
[Annotator "ChessBase"]
[PlyCount "101"]
[EventDate "2020.09.21"]
[EventCountry "CZE"]
[SourceTitle "playchess.com"]
[Source "ChessBase"]
[SourceQuality "1"]
[TimeControl "40/5400+30:1800+30"]

1. c4 {[%emt 0:00:00]} e5 {[%emt 0:00:00]} 2. g3 {[%emt 0:00:00]} d6 {[%emt 0:00:07]} 3. Bg2 {[%emt 0:00:00]} g6 {[%emt 0:00:08]} 4. Nc3 {[%emt 0:01:01]} Bg7 {[%emt 0:00:20]} 5. e3 {[%emt 0:00:38]} Nf6 {[%emt 0:01:28]} 6. d4 {[%emt 0:01:48]} exd4 {[%emt 0:05:40]} 7. exd4 {[%emt 0:00:13]} O-O {[%emt 0:00:19]} 8. Nge2 {[%emt 0:00:05]} Nc6 {[%emt 0:01:00]} 9. O-O {[%emt 0:00:23]} Re8 {[%emt 0:01:16]} 10. h3 {[%emt 0:00:04]} Ne7 {[%emt 0:18:57]} 11. d5 {[%emt 0:02:01]} a6 {[%emt 0:03:53]} 12. Qd2 {[%emt 0:08:33]} Rb8 {[%emt 0:06:47]} 13. a4 {[%emt 0:01:15]} Nd7 {[%emt 0:04:10]} 14. Nd4 {[%emt 0:06:19]} Ne5 {[%emt 0:04:36]} 15. b3 {[%emt 0:01:12]} c5 {[%emt 0:00:42]} 16. dxc6 {[%emt 0:01:00]} bxc6 {[%emt 0:00:25]} 17. f4 {[%emt 0:02:59]} c5 {[%emt 0:00:29]} 18. fxe5 {[%emt 0:05:05]} cxd4 {[%emt 0:00:06]} 19. Nd5 {[%emt 0:00:18]} dxe5 {[%emt 0:02:09]} 20. Qf2 {[%emt 0:00:18]} Be6 {[%emt 0:03:15]} 21. Bg5 {[%emt 0:03:37]} f5 {[%emt 0:02:47]} 22. Nxe7+ {[%emt 0:15:24]} Rxe7 {[%emt 0:00:08]} 23. g4 {[%emt 0:02:58]} h6 {[%emt 0:07:25]} 24. Bxe7 {[%emt 0:01:26]} Qxe7 {[%emt 0:00:06]} 25. gxf5 {[%emt 0:01:07]} Bxf5 {[%emt 0:00:48]} 26. Qg3 {[%emt 0:00:48]} Rf8 {[%emt 0:07:50]} 27. Rae1 {[%emt 0:01:23]} e4 {[%emt 0:01:50]} 28. Bxe4 {[%emt 0:05:39]} Bxe4 {[%emt 0:00:11]} 29. Rf4 {[%emt 0:01:33]} Be5 {[%emt 0:12:07]} 30. Rfxe4 {[%emt 0:01:05]} Bxg3 {[%emt 0:00:07]} 31. Rxe7 {[%emt 0:00:08]} Bxe1 {[%emt 0:00:07]} 32. Rxe1 {[%emt 0:00:02]} Rf3 {[%emt 0:01:23]} 33. b4 {[%emt 0:07:03]} Rc3 {[%emt 0:03:42]} 34. c5 {[%emt 0:04:23]} Kf7 {[%emt 0:02:45]} 35. Kf2 {[%emt 0:02:15]} Rc4 {[%emt 0:00:26]} 36. Rb1 {[%emt 0:00:17]} Ke6 {[%emt 0:00:56]} 37. b5 {[%emt 0:00:53]} axb5 {[%emt 0:00:28]} 38. axb5 {[%emt 0:00:06]} Rxc5 {[%emt 0:00:36]} 39. b6 {[%emt 0:00:17]} Rc8 {[%emt 0:00:14]} 40. Ke2 {[%emt 0:00:34]} Kd5 {[%emt 0:02:25]} 41. Kd3 {[%emt 0:30:14]} Rc3+ {[%emt 0:30:36]} 42. Kd2 {[%emt 0:00:10]} Rc8 {[%emt 0:00:07]} 43. b7 {[%emt 0:01:04]} Rb8 {[%emt 0:00:07]} 44. Kd3 {[%emt 0:00:03]} g5 {[%emt 0:00:24]} 45. Rb4 {[%emt 0:03:16]} Kc6 {[%emt 0:01:08]} 46. Kxd4 {[%emt 0:00:24]} Rxb7 {[%emt 0:00:12]} 47. Rxb7 {[%emt 0:00:06]} Kxb7 {[%emt 0:00:06]} 48. Ke5 {[%emt 0:00:03]} h5 {[%emt 0:00:11]} 49. Kf5 {[%emt 0:00:04]} g4 {[%emt 0:00:20]} 50. hxg4 {[%emt 0:00:03]} hxg4 {[%emt 0:00:07]} 51. Kxg4 {[%emt 0:00:04]} 1/2-1/2

[Event "Czech Open GM 2020"]
[Site "Pardubice"]
[Date "2020.09.28"]
[Round "9.9"]
[White "Parvanyan, Ashot"]
[Black "Nemec, Jachym"]
[Result "1-0"]
[ECO "D23"]
[WhiteElo "2458"]
[BlackElo "2150"]
[Annotator "ChessBase"]
[PlyCount "59"]
[EventDate "2020.09.21"]
[EventCountry "CZE"]
[SourceTitle "playchess.com"]
[Source "ChessBase"]
[SourceQuality "1"]
[TimeControl "40/5400+30:1800+30"]

1. Nf3 {[%emt 0:00:00]} Nf6 {[%emt 0:00:00]} 2. c4 {[%emt 0:00:00]} c6 {[%emt 0:00:42]} 3. d4 {[%emt 0:02:13]} d5 {[%emt 0:00:19]} 4. Qb3 {[%emt 0:00:09]} dxc4 {[%emt 0:00:05]} 5. Qxc4 {[%emt 0:00:04]} Bf5 {[%emt 0:00:07]} 6. g3 {[%emt 0:01:15]} Nbd7 {[%emt 0:00:14]} 7. Bg2 {[%emt 0:00:07]} e6 {[%emt 0:00:05]} 8. O-O {[%emt 0:01:56]} Be7 {[%emt 0:00:06]} 9. Re1 {[%emt 0:03:55]} Rc8 {[%emt 0:03:25]} 10. Nc3 {[%emt 0:07:31]} b5 {[%emt 0:00:14]} 11. Qb3 {[%emt 0:00:24]} b4 {[%emt 0:01:15]} 12. Na4 {[%emt 0:14:22]} Be4 {[%emt 0:00:33]} 13. Bg5 {[%emt 0:02:32]} O-O {[%emt 0:02:24]} 14. Bxf6 {[%emt 0:13:07]} Nxf6 {[%emt 0:00:23]} 15. Nc5 {[%emt 0:00:16]} Bxf3 {[%emt 0:01:32]} 16. Bxf3 {[%emt 0:04:02]} Bxc5 {[%emt 0:01:52]} 17. dxc5 {[%emt 0:00:05]} Qa5 {[%emt 0:01:20]} 18. Rec1 {[%emt 0:03:53]} Rc7 {[%emt 0:03:16]} 19. Rc4 {[%emt 0:07:38]} Rb8 {[%emt 0:07:17]} 20. a3 {[%emt 0:00:55]} Nd7 {[%emt 0:05:07]} 21. Rxb4 {[%emt 0:01:03]} Rbc8 {[%emt 0:00:11]} 22. Rd1 {[%emt 0:09:00]} Qxc5 {[%emt 0:01:20]} 23. Rbd4 {[%emt 0:02:48]} Nf8 {[%emt 0:02:26]} 24. Rd8 {[%emt 0:08:40]} Rxd8 {[%emt 0:00:08]} 25. Rxd8 {[%emt 0:00:07]} Qe7 {[%emt 0:00:06]} 26. Qb8 {[%emt 0:00:43]} Rd7 {[%emt 0:00:49]} 27. Re8 {[%emt 0:02:19]} Qc5 {[%emt 0:02:29]} 28. b4 {[%emt 0:00:57]} Qd6 {[%emt 0:00:56]} 29. Qc8 {[%emt 0:00:22]} a5 {[%emt 0:01:39]} 30. Rxf8+ {[%emt 0:00:28]} 1-0

[Event "Czech Open GM 2020"]
[Site "Pardubice"]
[Date "2020.09.28"]
[Round "9.10"]
[White "Mica, Marek"]
[Black "Haba, Petr"]
[Result "1/2-1/2"]
[ECO "D27"]
[WhiteElo "2290"]
[BlackElo "2461"]
[Annotator "ChessBase"]
[PlyCount "75"]
[EventDate "2020.09.21"]
[EventCountry "CZE"]
[SourceTitle "playchess.com"]
[Source "ChessBase"]
[SourceQuality "1"]
[TimeControl "40/5400+30:1800+30"]

1. d4 {[%emt 0:00:00]} d5 {[%emt 0:00:00]} 2. c4 {[%emt 0:00:00]} dxc4 {[%emt 0:00:00]} 3. Nf3 {[%emt 0:00:19]} Nf6 {[%emt 0:00:05]} 4. e3 {[%emt 0:00:21]} e6 {[%emt 0:00:11]} 5. Bxc4 {[%emt 0:00:12]} c5 {[%emt 0:00:06]} 6. O-O {[%emt 0:00:22]} a6 {[%emt 0:00:03]} 7. dxc5 {[%emt 0:06:39]} Bxc5 {[%emt 0:02:36]} 8. Qxd8+ {[%emt 0:01:05]} Kxd8 {[%emt 0:00:03]} 9. Nbd2 {[%emt 0:00:49]} Ke7 {[%emt 0:02:08]} 10. Be2 {[%emt 0:05:30]} Nc6 {[%emt 0:04:05]} 11. Nc4 {[%emt 0:01:00]} Nd7 {[%emt 0:11:34]} 12. Bd2 {[%emt 0:09:00]} b5 {[%emt 0:00:59]} 13. Na5 {[%emt 0:00:38]} Nxa5 {[%emt 0:00:06]} 14. Bxa5 {[%emt 0:00:14]} Bb7 {[%emt 0:00:06]} 15. Rac1 {[%emt 0:01:32]} Rhc8 {[%emt 0:00:58]} 16. Nd2 {[%emt 0:02:00]} Bd6 {[%emt 0:04:39]} 17. Nb3 {[%emt 0:07:12]} Ne5 {[%emt 0:07:04]} 18. f3 {[%emt 0:04:35]} Bd5 {[%emt 0:05:39]} 19. Nd4 {[%emt 0:09:52]} Nc4 {[%emt 0:10:45]} 20. Bxc4 {[%emt 0:00:50]} Bxc4 {[%emt 0:00:04]} 21. Rfd1 {[%emt 0:00:16]} g6 {[%emt 0:00:32]} 22. b3 {[%emt 0:03:31]} Bd5 {[%emt 0:00:25]} 23. Nc2 {[%emt 0:01:25]} Be5 {[%emt 0:04:54]} 24. Nb4 {[%emt 0:01:39]} Bb7 {[%emt 0:10:10]} 25. Nd3 {[%emt 0:01:21]} Bd6 {[%emt 0:04:03]} 26. Kf2 {[%emt 0:02:32]} Ba3 {[%emt 0:11:24]} 27. Bb4+ {[%emt 0:01:46]} Bxb4 {[%emt 0:00:05]} 28. Nxb4 {[%emt 0:00:09]} a5 {[%emt 0:00:02]} 29. Nd3 {[%emt 0:00:27]} b4 {[%emt 0:00:28]} 30. Ne5 {[%emt 0:05:43]} Bd5 {[%emt 0:12:24]} 31. e4 {[%emt 0:06:13]} f6 {[%emt 0:00:06]} 32. Nd3 {[%emt 0:00:53]} Bb7 {[%emt 0:01:49]} 33. Ke3 {[%emt 0:04:17]} Ba6 {[%emt 0:02:03]} 34. Rxc8 {[%emt 0:05:51]} Rxc8 {[%emt 0:00:24]} 35. Rc1 {[%emt 0:00:22]} Rxc1 {[%emt 0:01:44]} 36. Nxc1 {[%emt 0:01:43]} e5 37. Nd3 {[%emt 0:00:00]} Kd6 {[%emt 0:01:16]} 38. g3 {[%emt 0:00:08]} 1/2-1/2

[Event "Czech Open GM 2020"]
[Site "Pardubice"]
[Date "2020.09.28"]
[Round "9.11"]
[White "Arkell, Keith C"]
[Black "Simek, Petr"]
[Result "0-1"]
[ECO "A09"]
[WhiteElo "2429"]
[BlackElo "2289"]
[Annotator "ChessBase"]
[PlyCount "98"]
[EventDate "2020.09.21"]
[EventCountry "CZE"]
[SourceTitle "playchess.com"]
[Source "ChessBase"]
[SourceQuality "1"]
[TimeControl "40/5400+30:1800+30"]

1. Nf3 {[%emt 1:04:44]} d5 2. c4 {[%emt 0:00:00]} d4 {[%emt 0:00:08]} 3. b4 {[%emt 0:00:00]} f6 {[%emt 0:00:30]} 4. d3 {[%emt 0:00:00]} e5 {[%emt 0:00:24]} 5. a3 {[%emt 0:00:00]} c5 {[%emt 0:15:54]} 6. Qb3 {[%emt 0:00:00]} a5 {[%emt 0:01:19]} 7. bxc5 {[%emt 0:00:00]} Bxc5 {[%emt 0:06:01]} 8. a4 {[%emt 0:00:00]} Nc6 {[%emt 0:06:20]} 9. g3 {[%emt 0:00:00]} Nge7 {[%emt 0:01:43]} 10. Bg2 {[%emt 0:00:00]} O-O {[%emt 0:02:38]} 11. O-O {[%emt 0:00:00]} Rb8 {[%emt 0:11:52]} 12. Nbd2 {[%emt 0:00:00]} b6 {[%emt 0:00:26]} 13. Ne4 {[%emt 0:00:00]} Kh8 {[%emt 0:09:39]} 14. Nxc5 {[%emt 0:00:00]} bxc5 {[%emt 0:00:04]} 15. Qa3 {[%emt 0:00:00]} Nb4 {[%emt 0:00:33]} 16. Rb1 {[%emt 0:00:00]} Bb7 {[%emt 0:00:51]} 17. Bd2 {[%emt 0:00:00]} Qd7 {[%emt 0:03:45]} 18. Rb2 {[%emt 0:00:00]} Rbd8 {[%emt 0:04:42]} 19. Qb3 {[%emt 0:00:00]} Bc6 {[%emt 0:08:56]} 20. Ra1 {[%emt 0:00:00]} Qb7 {[%emt 0:00:18]} 21. Qd1 {[%emt 0:00:00]} Ng6 {[%emt 0:04:20]} 22. Qf1 {[%emt 0:00:00]} e4 {[%emt 0:01:59]} 23. Ne1 {[%emt 0:00:00]} f5 {[%emt 0:00:30]} 24. f4 {[%emt 0:00:00]} Rfe8 {[%emt 0:02:18]} 25. Bxb4 {[%emt 0:01:25]} axb4 {[%emt 0:00:05]} 26. a5 {[%emt 0:00:56]} Ra8 {[%emt 0:01:14]} 27. e3 {[%emt 0:08:03]} dxe3 {[%emt 0:05:43]} 28. dxe4 {[%emt 0:02:16]} Bxe4 {[%emt 0:00:41]} 29. Nd3 {[%emt 0:00:08]} Qc6 {[%emt 0:03:48]} 30. Nc1 {[%emt 0:01:07]} Nf8 {[%emt 0:01:07]} 31. Nb3 {[%emt 0:00:40]} Ne6 {[%emt 0:02:08]} 32. Rd1 {[%emt 0:15:22]} Red8 {[%emt 0:00:14]} 33. Re1 {[%emt 0:02:48]} Nd4 {[%emt 0:00:47]} 34. Rxe3 {[%emt 0:01:18]} Nxb3 {[%emt 0:00:06]} 35. Bxe4 {[%emt 0:00:54]} fxe4 {[%emt 0:00:08]} 36. Rbxb3 {[%emt 0:00:11]} Rxa5 {[%emt 0:00:07]} 37. Rb2 {[%emt 0:01:06]} Rd4 {[%emt 0:00:20]} 38. f5 {[%emt 0:02:36]} h6 {[%emt 0:00:29]} 39. Rf2 {[%emt 0:00:58]} Qf6 {[%emt 0:02:07]} 40. Qe2 {[%emt 0:03:22]} Ra1+ {[%emt 0:01:40]} 41. Kg2 {[%emt 0:02:40]} Rc1 {[%emt 0:09:44]} 42. Qh5 {[%emt 0:03:44]} Rdxc4 {[%emt 0:01:24]} 43. Qe8+ {[%emt 0:00:57]} Kh7 {[%emt 0:00:04]} 44. Kh3 {[%emt 0:03:53]} Rd4 {[%emt 0:06:37]} 45. Rf4 {[%emt 0:05:44]} c4 {[%emt 0:03:52]} 46. Qb5 {[%emt 0:00:21]} b3 {[%emt 0:00:52]} 47. Re2 {[%emt 0:02:06]} Rc2 {[%emt 0:00:44]} 48. Rfxe4 {[%emt 0:08:27]} Rxe4 {[%emt 0:02:37]} 49. Rxe4 {[%emt 0:00:06]} b2 {[%emt 0:00:41]} 0-1

[Event "Czech Open GM 2020"]
[Site "Pardubice"]
[Date "2020.09.28"]
[Round "9.12"]
[White "Kueppers, Timo"]
[Black "Jurcik, Marian"]
[Result "1-0"]
[ECO "A25"]
[WhiteElo "2277"]
[BlackElo "2426"]
[Annotator "ChessBase"]
[PlyCount "131"]
[EventDate "2020.09.21"]
[EventCountry "CZE"]
[SourceTitle "playchess.com"]
[Source "ChessBase"]
[SourceQuality "1"]
[TimeControl "40/5400+30:1800+30"]

1. c4 {[%emt 0:13:59]} e5 {[%emt 0:04:21]} 2. g3 {[%emt 0:00:16]} Nc6 {[%emt 0:08:52]} 3. Nc3 {[%emt 0:00:06]} Bb4 {[%emt 0:01:44]} 4. Nd5 {[%emt 0:02:46]} Bc5 {[%emt 0:01:03]} 5. Bg2 {[%emt 0:00:19]} Nf6 {[%emt 0:01:56]} 6. d3 {[%emt 0:05:00]} Nxd5 {[%emt 0:10:35]} 7. cxd5 {[%emt 0:00:56]} Qf6 {[%emt 0:01:53]} 8. Nf3 {[%emt 0:07:49]} Nd4 {[%emt 0:03:06]} 9. Nxd4 {[%emt 0:10:43]} Bxd4 {[%emt 0:00:27]} 10. O-O {[%emt 0:02:40]} O-O {[%emt 0:01:50]} 11. Qc2 {[%emt 0:02:19]} c6 {[%emt 0:06:58]} 12. Bd2 {[%emt 0:08:01]} cxd5 {[%emt 0:25:45]} 13. Bxd5 {[%emt 0:00:17]} d6 {[%emt 0:00:21]} 14. e3 {[%emt 0:00:06]} Bb6 {[%emt 0:00:41]} 15. a4 {[%emt 0:02:55]} Rb8 {[%emt 0:12:28]} 16. a5 {[%emt 0:03:24]} Bd8 {[%emt 0:00:02]} 17. Rfc1 {[%emt 0:07:26]} Bd7 {[%emt 0:01:39]} 18. Qb3 {[%emt 0:00:54]} b6 {[%emt 0:01:28]} 19. a6 {[%emt 0:02:35]} b5 {[%emt 0:01:49]} 20. Bb4 {[%emt 0:02:58]} Bb6 {[%emt 0:05:06]} 21. Qa3 {[%emt 0:00:46]} Rfe8 {[%emt 0:01:36]} 22. Bxd6 {[%emt 0:01:08]} Rbd8 {[%emt 0:00:43]} 23. Bc7 {[%emt 0:03:20]} Rc8 {[%emt 0:01:42]} 24. Bxb6 {[%emt 0:00:21]} Qxb6 {[%emt 0:00:34]} 25. Bb7 {[%emt 0:03:17]} b4 {[%emt 0:02:18]} 26. Qb3 {[%emt 0:00:19]} Rc5 {[%emt 0:01:06]} 27. Rxc5 {[%emt 0:07:32]} Qxc5 {[%emt 0:00:02]} 28. Bd5 {[%emt 0:00:31]} Be6 {[%emt 0:01:35]} 29. Bxe6 {[%emt 0:01:59]} Rxe6 {[%emt 0:00:01]} 30. Qc4 {[%emt 0:01:04]} Qxc4 {[%emt 0:02:32]} 31. dxc4 {[%emt 0:00:05]} Kf8 {[%emt 0:00:18]} 32. Kf1 {[%emt 0:01:16]} Ke7 {[%emt 0:00:41]} 33. Ke2 {[%emt 0:00:20]} e4 {[%emt 0:00:40]} 34. Ra5 {[%emt 0:01:26]} Kd7 {[%emt 0:00:29]} 35. h4 {[%emt 0:06:23]} Kc7 {[%emt 0:00:22]} 36. Rf5 {[%emt 0:00:30]} f6 37. Ra5 {[%emt 0:00:30]} Rd6 {[%emt 0:01:00]} 38. h5 {[%emt 0:01:06]} g6 {[%emt 0:00:41]} 39. g4 {[%emt 0:01:06]} Rc6 {[%emt 0:00:33]} 40. hxg6 {[%emt 0:00:55]} hxg6 {[%emt 0:00:03]} 41. Kd2 {[%emt 0:08:51]} Rxc4 {[%emt 0:07:10]} 42. Rb5 {[%emt 0:00:25]} Kd6 {[%emt 0:14:59]} 43. Rb7 {[%emt 0:00:15]} Rc7 {[%emt 0:05:08]} 44. Rxb4 {[%emt 0:00:14]} Rc6 {[%emt 0:00:11]} 45. Rd4+ {[%emt 0:08:30]} Ke5 {[%emt 0:01:05]} 46. Ra4 {[%emt 0:00:08]} Kd5 {[%emt 0:02:26]} 47. b3 {[%emt 0:01:03]} f5 {[%emt 0:01:51]} 48. Ra5+ {[%emt 0:01:24]} Ke6 {[%emt 0:00:16]} 49. gxf5+ {[%emt 0:01:12]} gxf5 {[%emt 0:00:01]} 50. b4 {[%emt 0:00:33]} Rc4 {[%emt 0:00:50]} 51. b5 {[%emt 0:11:40]} Rc5 {[%emt 0:00:29]} 52. Ra1 {[%emt 0:01:37]} Rxb5 {[%emt 0:00:04]} 53. Rh1 {[%emt 0:00:04]} Rd5+ {[%emt 0:01:53]} 54. Kc3 {[%emt 0:00:06]} Rd7 {[%emt 0:00:35]} 55. Kc4 {[%emt 0:00:34]} Ke5 {[%emt 0:00:49]} 56. Rh8 {[%emt 0:01:02]} Rd2 {[%emt 0:00:39]} 57. Rh7 {[%emt 0:00:40]} Rc2+ {[%emt 0:00:25]} 58. Kb3 {[%emt 0:00:16]} Rc6 {[%emt 0:00:37]} 59. Rxa7 {[%emt 0:00:07]} Kd5 {[%emt 0:00:26]} 60. Rd7+ {[%emt 0:01:11]} Ke6 {[%emt 0:00:20]} 61. a7 {[%emt 0:00:15]} Ra6 {[%emt 0:00:13]} 62. Rh7 {[%emt 0:00:10]} Kd5 {[%emt 0:00:25]} 63. Kb4 {[%emt 0:00:32]} Ra1 {[%emt 0:00:57]} 64. Kb5 {[%emt 0:00:19]} Ra2 {[%emt 0:00:39]} 65. Kb6 {[%emt 0:00:09]} Kc4 {[%emt 0:00:26]} 66. Rd7 {[%emt 0:00:57]} 1-0

[Event "Czech Open GM 2020"]
[Site "Pardubice"]
[Date "2020.09.28"]
[Round "9.13"]
[White "Nemcova, Karin"]
[Black "Pantzar, Milton"]
[Result "0-1"]
[ECO "B15"]
[WhiteElo "1983"]
[BlackElo "2424"]
[Annotator "ChessBase"]
[PlyCount "126"]
[EventDate "2020.09.21"]
[EventCountry "CZE"]
[SourceTitle "playchess.com"]
[Source "ChessBase"]
[SourceQuality "1"]
[TimeControl "40/5400+30:1800+30"]

1. e4 {[%emt 0:00:00]} c6 {[%emt 0:00:00]} 2. d4 {[%emt 0:00:00]} d5 {[%emt 0:00:00]} 3. Nc3 {[%emt 0:00:00]} dxe4 {[%emt 0:00:04]} 4. Nxe4 {[%emt 0:00:00]} Nf6 {[%emt 0:00:08]} 5. Nxf6+ {[%emt 0:00:00]} exf6 {[%emt 0:00:08]} 6. c3 {[%emt 0:00:15]} Bd6 {[%emt 0:00:09]} 7. Bd3 {[%emt 0:00:09]} O-O {[%emt 0:00:08]} 8. Ne2 {[%emt 0:00:09]} Re8 {[%emt 0:00:08]} 9. Qc2 {[%emt 0:00:10]} h5 {[%emt 0:00:09]} 10. O-O {[%emt 0:00:08]} h4 {[%emt 0:00:15]} 11. h3 {[%emt 0:00:51]} Nd7 {[%emt 0:01:26]} 12. Bd2 {[%emt 0:00:21]} Nf8 {[%emt 0:01:59]} 13. Rae1 {[%emt 0:01:57]} Bd7 {[%emt 0:10:33]} 14. c4 {[%emt 0:00:40]} Rc8 {[%emt 0:04:28]} 15. f4 {[%emt 0:04:42]} Bb8 {[%emt 0:05:31]} 16. f5 {[%emt 0:12:14]} Nh7 {[%emt 0:01:41]} 17. Bf4 {[%emt 0:01:37]} Bxf4 {[%emt 0:08:13]} 18. Rxf4 {[%emt 0:00:54]} Qa5 {[%emt 0:00:31]} 19. b4 {[%emt 0:05:47]} Qxb4 {[%emt 0:05:35]} 20. Rb1 {[%emt 0:00:36]} Qd6 {[%emt 0:06:27]} 21. c5 {[%emt 0:10:06]} Qc7 {[%emt 0:01:31]} 22. Rxh4 {[%emt 0:00:17]} Re3 {[%emt 0:02:04]} 23. Bc4 {[%emt 0:11:42]} Ng5 {[%emt 0:03:59]} 24. Nf4 {[%emt 0:01:09]} Rce8 {[%emt 0:02:47]} 25. Ng6 {[%emt 0:02:26]} Nh7 {[%emt 0:15:25]} 26. Bxf7+ {[%emt 0:20:50]} Kxf7 {[%emt 0:00:03]} 27. Rxh7 {[%emt 0:01:53]} Bc8 {[%emt 0:12:35]} 28. h4 {[%emt 0:07:02]} Qd7 {[%emt 0:04:09]} 29. Qc4+ {[%emt 0:00:55]} Qd5 {[%emt 0:00:14]} 30. Qxd5+ {[%emt 0:02:36]} cxd5 {[%emt 0:00:02]} 31. h5 {[%emt 0:02:11]} Kg8 {[%emt 0:03:39]} 32. Rh8+ {[%emt 0:00:37]} Kf7 {[%emt 0:00:05]} 33. Rxe8 {[%emt 0:05:33]} Kxe8 {[%emt 0:01:28]} 34. Nf4 {[%emt 0:00:47]} Re7 {[%emt 0:05:48]} 35. Rf1 {[%emt 0:03:39]} Re4 {[%emt 0:01:15]} 36. Nxd5 {[%emt 0:02:42]} Rxd4 {[%emt 0:00:18]} 37. Nc7+ {[%emt 0:00:14]} Kd8 {[%emt 0:01:08]} 38. Nb5 {[%emt 0:01:26]} Rd5 {[%emt 0:01:36]} 39. g4 {[%emt 0:00:49]} Rxc5 {[%emt 0:00:30]} 40. Rd1+ {[%emt 0:00:16]} Bd7 {[%emt 0:02:50]} 41. Nd4 {[%emt 0:05:41]} Ke7 {[%emt 0:02:19]} 42. Kf2 {[%emt 0:00:36]} Rc3 {[%emt 0:02:18]} 43. Re1+ {[%emt 0:09:36]} Kf7 {[%emt 0:00:17]} 44. Re3 {[%emt 0:01:27]} Rc4 {[%emt 0:02:32]} 45. Rd3 {[%emt 0:00:07]} b5 {[%emt 0:00:57]} 46. Ke3 {[%emt 0:06:00]} b4 {[%emt 0:02:11]} 47. g5 {[%emt 0:05:52]} fxg5 {[%emt 0:09:31]} 48. Nf3 {[%emt 0:00:06]} Rc7 {[%emt 0:01:57]} 49. Ne5+ {[%emt 0:01:50]} Ke8 {[%emt 0:00:35]} 50. f6 {[%emt 0:01:53]} Bf5 {[%emt 0:00:35]} 51. Rd6 {[%emt 0:01:08]} gxf6 {[%emt 0:00:52]} 52. Rxf6 {[%emt 0:00:15]} Bb1 {[%emt 0:01:15]} 53. Re6+ {[%emt 0:02:17]} Kf8 {[%emt 0:03:31]} 54. h6 {[%emt 0:00:07]} Bxa2 {[%emt 0:02:46]} 55. Rd6 {[%emt 0:02:06]} Kg8 {[%emt 0:02:37]} 56. Nd7 {[%emt 0:00:21]} Rxd7 {[%emt 0:03:16]} 57. Rxd7 {[%emt 0:00:07]} b3 {[%emt 0:01:07]} 58. Rb7 {[%emt 0:00:13]} a5 {[%emt 0:00:08]} 59. Kd4 {[%emt 0:00:48]} a4 {[%emt 0:00:53]} 60. Ke5 {[%emt 0:01:05]} a3 {[%emt 0:00:28]} 61. Kf6 {[%emt 0:00:34]} b2 {[%emt 0:00:27]} 62. h7+ {[%emt 0:00:39]} Kh8 {[%emt 0:00:03]} 63. Rb8+ {[%emt 0:00:30]} Kxh7 {[%emt 0:00:04]} 0-1